fUST/lending_fUST_20250809
["ID","MTS","AMOUNT","RATE_DAILY","PERIOD"]
[378074545,1754717438976,-500.0,0.00021873,2]
[378074546,1754717438985,-500.0,0.00021873,2]
[378074547,1754717438997,-500.0,0.00021873,2]
[378074548,1754717439006,-157.99642476,0.00021873,2]
[378074549,1754717439017,-502.74908366,0.00021873,2]
[378074550,1754717439027,-500.0,0.00021873,2]
[378074551,1754717439036,-516.32251096,0.00021873,2]
[378074552,1754717439046,-500.0,0.00021873,2]
[378074553,1754717439055,-500.0,0.00021873,2]
[378074554,1754717439064,-500.0,0.00021873,2]
[378074555,1754717439074,-500.0,0.00021873,2]
[378074556,1754717439083,-500.0,0.00021873,2]
[378074557,1754717439093,-262.4411315,0.00021873,2]
[378074558,1754717439102,-500.0,0.00021873,2]
[378074559,1754717439112,-502.47855698,0.00021873,2]
[378074560,1754717439122,-500.0,0.00021873,2]
[378074561,1754717439132,-500.0,0.00021873,2]
[378074562,1754717439142,-167.44268661,0.00021873,2]
[378074563,1754717439151,-500.0,0.00021873,2]
[378074564,1754717439161,-500.0,0.00021873,2]
[378074565,1754717439171,-258.74359905,0.00021873,2]
[378074566,1754717439180,-500.0,0.00021873,2]
[378074567,1754717439189,-500.0,0.00021873,2]
[378074568,1754717439199,-500.0,0.00021873,2]
[378074569,1754717439209,-500.0,0.00021873,2]
[378074570,1754717439219,-500.0,0.00021873,2]
[378074571,1754717439229,-501.91059467,0.00021873,2]
[378074572,1754717439238,-500.0,0.00021873,2]
[378074573,1754717439247,-500.6197096,0.00021873,2]
[378074574,1754717439257,-500.0,0.00021873,2]
[378074575,1754717439267,-500.0,0.00021873,2]
[378074576,1754717439276,-500.0,0.00021873,2]
[378074577,1754717439286,-346.0,0.00021881,2]
[378074578,1754717439298,-151.0,0.000219,4]
[378074579,1754717439307,-151.0,0.000219,4]
[378074580,1754717439317,-438.83259954,0.00021916,2]
[378074581,1754717439327,-528.4464115,0.00021917,2]
[378074582,1754717439337,-287.66214374,0.00021917,2]
[378074583,1754717439346,-460.0,0.00021917,2]
[378074584,1754717439356,-461.59049045,0.00021917,2]
[378074585,1754717439366,-462.75665602,0.00021917,2]
[378074586,1754717439375,-460.0,0.00021917,2]
[378074587,1754717439385,-460.0,0.00021917,2]
[378074588,1754717439395,-461.43234869,0.00021917,2]
[378074589,1754717439404,-460.0,0.00021917,2]
[378074590,1754717439414,-460.0,0.00021917,2]
[378074591,1754717439423,-281.81870193,0.00021917,2]
[378074592,1754717439433,-460.0,0.00021917,2]
[378074593,1754717439443,-460.98033956,0.00021917,2]
[378074594,1754717439453,-498.32945838,0.00021917,2]
[378074595,1754717439462,-460.0,0.00021917,2]
[378074596,1754717439472,-460.0,0.00021917,2]
[378074597,1754717439481,-461.43536599,0.00021917,2]
[378074599,1754717439491,-461.70653927,0.00021917,2]
[378074601,1754717439500,-500.0,0.00021917,2]
[378074602,1754717439511,-460.0,0.00021917,2]
[378074603,1754717439524,-466.66519227,0.00021917,2]
[378074604,1754717439534,-461.74789151,0.00021917,2]
[378074605,1754717439545,-460.0,0.00021917,2]
[378074606,1754717439555,-460.0,0.00021917,2]
[378074609,1754717439564,-408.72744088,0.00021917,2]
[378074611,1754717439574,-460.0,0.00021917,2]
[378074613,1754717439583,-460.0,0.00021917,2]
[378074614,1754717439595,-460.0,0.00021917,2]
[378074615,1754717439604,-460.0,0.00021917,2]
[378074617,1754717439613,-462.36192956,0.00021917,2]
[378074619,1754717439623,-460.0,0.00021917,2]
[378074621,1754717439632,-465.84013018,0.00021917,2]
[378074623,1754717439643,-460.0,0.00021917,2]
[378074625,1754717439652,-460.0,0.00021917,2]
[378074626,1754717439662,-460.0,0.00021917,2]
[378074628,1754717439671,-460.0,0.00021917,2]
[378074630,1754717439680,-370.80765135,0.00021917,2]
[378074632,1754717439690,-460.0,0.00021917,2]
[378074634,1754717439699,-460.0,0.00021917,2]
[378074636,1754717439709,-460.0,0.00021917,2]
[378074638,1754717439719,-461.30085428,0.00021917,2]
[378074640,1754717439728,-461.30085428,0.00021917,2]
[378074643,1754717439738,-426.52857705,0.00021917,2]
[378074645,1754717439748,-460.0,0.00021917,2]
[378074646,1754717439757,-463.20214724,0.00021917,2]
[378074648,1754717439766,-1003.85971826,0.00021917,2]
[378074650,1754717439775,-461.41192486,0.00021917,2]
[378074652,1754717439785,-460.0,0.00021917,2]
[378074654,1754717439795,-460.0,0.00021917,2]
[378074656,1754717439804,-460.0,0.00021917,2]
[378074659,1754717439814,-460.0,0.00021917,2]
[378074661,1754717439823,-460.0,0.00021917,2]
[378074662,1754717439833,-460.0,0.00021917,2]
[378074664,1754717439843,-460.0,0.00021917,2]
[378074666,1754717439853,-460.75415341,0.00021917,2]
[378074668,1754717439862,-460.0,0.00021917,2]
[378074670,1754717439871,-460.0,0.00021917,2]
[378074672,1754717439880,-460.0,0.00021917,2]
[378074674,1754717439890,-460.0,0.00021917,2]
[378074676,1754717439899,-464.68938059,0.00021917,2]
[378074678,1754717439908,-461.98344328,0.00021917,2]
[378074680,1754717439917,-462.85516721,0.00021917,2]
[378074682,1754717439926,-460.0,0.00021917,2]
[378074684,1754717439936,-460.82625023,0.00021917,2]
[378074686,1754717439945,-460.0,0.00021917,2]
[378074688,1754717439956,-460.0,0.00021917,2]
[378074690,1754717439965,-461.90077487,0.00021917,2]
[378074692,1754717439974,-460.0,0.00021917,2]
[378074694,1754717439983,-460.0,0.00021917,2]
[378074696,1754717439993,-460.96601076,0.00021917,2]
[378074698,1754717440003,-463.55153702,0.00021917,2]
[378074710,1754717440109,-460.0,0.00021917,2]
[378074712,1754717440118,-463.08723458,0.00021917,2]
[378074714,1754717440127,-463.53137587,0.00021917,2]
[378074716,1754717440137,-460.0,0.00021917,2]
[378074718,1754717440147,-460.0,0.00021917,2]
[378074720,1754717440156,-460.0,0.00021917,2]
[378074723,1754717440166,-460.0,0.00021917,2]
[378074724,1754717440175,-460.0,0.00021917,2]
[378074726,1754717440184,-460.0,0.00021917,2]
[378074728,1754717440193,-461.3283454,0.00021917,2]
[378074730,1754717440202,-460.0,0.00021917,2]
[378074732,1754717440214,-460.0,0.00021917,2]
[378074734,1754717440223,-460.0,0.00021917,2]
[378074736,1754717440232,-460.0,0.00021917,2]
[378074738,1754717440241,-460.0,0.00021917,2]
[378074740,1754717440251,-273.1406055,0.00021917,2]
[378074742,1754717440261,-460.0,0.00021917,2]
[378074744,1754717440271,-460.0,0.00021917,2]
[378074746,1754717440282,-198.02632748,0.00021917,2]
[378074748,1754717440291,-632.83,0.00021917,2]
[378074750,1754717440302,-460.0,0.00021917,2]
[378074752,1754717440311,-460.0,0.00021917,2]
[378074754,1754717440321,-462.06915397,0.00021917,2]
[378074756,1754717440330,-508.91366313,0.00021917,2]
[378074758,1754717440340,-460.0,0.00021917,2]
[378074760,1754717440350,-460.0,0.00021917,2]
[378074762,1754717440359,-462.36799033,0.00021917,2]
[378074764,1754717440368,-461.65692336,0.00021917,2]
[378074766,1754717440377,-460.0,0.00021917,2]
[378074768,1754717440386,-460.0,0.00021917,2]
[378074770,1754717440395,-465.12687357,0.00021917,2]
[378074772,1754717440405,-460.0,0.00021917,2]
[378074774,1754717440415,-460.6449473,0.00021917,2]
[378074776,1754717440424,-460.0,0.00021917,2]
[378074778,1754717440433,-460.63079622,0.00021917,2]
[378074780,1754717440442,-460.0,0.00021917,2]
[378074783,1754717440454,-460.0,0.00021917,2]
[378074784,1754717440463,-460.0,0.00021917,2]
[378074787,1754717440472,-460.0,0.00021917,2]
[378074788,1754717440481,-442.32341299,0.00021917,2]
[378074791,1754717440491,-460.0,0.00021917,2]
[378074792,1754717440500,-460.0,0.00021917,2]
[378074794,1754717440510,-460.0,0.00021917,2]
[378074797,1754717440523,-460.0,0.00021917,2]
[378074798,1754717440532,-460.55384015,0.00021917,2]
[378074800,1754717440542,-460.0,0.00021917,2]
[378074802,1754717440555,-460.0,0.00021917,2]
[378074805,1754717440564,-460.0,0.00021917,2]
[378074806,1754717440573,-460.0,0.00021917,2]
[378074808,1754717440583,-462.38783619,0.00021917,2]
[378074810,1754717440593,-460.0,0.00021917,2]
[378074812,1754717440603,-460.0,0.00021917,2]
[378074814,1754717440612,-460.0,0.00021917,2]
[378074816,1754717440622,-460.0,0.00021917,2]
[378074818,1754717440631,-460.0,0.00021917,2]
[378074820,1754717440641,-460.0,0.00021917,2]
[378074822,1754717440650,-460.0,0.00021917,2]
[378074824,1754717440660,-460.0,0.00021917,2]
[378074826,1754717440669,-463.86287689,0.00021917,2]
[378074828,1754717440679,-460.0,0.00021917,2]
[378074830,1754717440688,-460.0,0.00021917,2]
[378074832,1754717440698,-460.0,0.00021917,2]
[378074834,1754717440707,-420.40742551,0.00021917,2]
[378074836,1754717440716,-460.0,0.00021917,2]
[378074838,1754717440725,-463.79475646,0.00021917,2]
[378074840,1754717440734,-460.0,0.00021917,2]
[378074842,1754717440744,-460.0,0.00021917,2]
[378074844,1754717440753,-460.0,0.00021917,2]
[378074846,1754717440763,-460.0,0.00021917,2]
[378074848,1754717440773,-460.0,0.00021917,2]
[378074850,1754717440782,-460.0,0.00021917,2]
[378074852,1754717440791,-460.0,0.00021917,2]
[378074854,1754717440801,-460.0,0.00021917,2]
[378074856,1754717440810,-156.48397692,0.00021917,2]
[378074858,1754717440819,-460.0,0.00021917,2]
[378074860,1754717440828,-460.0,0.00021917,2]
[378074862,1754717440838,-460.0,0.00021917,2]
[378074864,1754717440848,-460.0,0.00021917,2]
[378074866,1754717440858,-460.0,0.00021917,2]
[378074868,1754717440867,-460.0,0.00021917,2]
[378074870,1754717440876,-460.56292029,0.00021917,2]
[378074872,1754717440886,-460.0,0.00021917,2]
[378074874,1754717440895,-460.0,0.00021917,2]
[378074876,1754717440904,-748.0,0.00021917,2]
[378074878,1754717440914,-460.0,0.00021917,2]
[378074880,1754717440923,-460.0,0.00021917,2]
[378074882,1754717440933,-460.0,0.00021917,2]
[378074884,1754717440943,-462.27952878,0.00021917,2]
[378074886,1754717440952,-460.0,0.00021917,2]
[378074888,1754717440962,-462.51852488,0.00021917,2]
[378074890,1754717440972,-461.52043546,0.00021917,2]
[378074892,1754717440981,-460.0,0.00021917,2]
[378074894,1754717440991,-503.24,0.00021917,2]
[378074896,1754717440999,-460.0,0.00021917,2]
[378074898,1754717441009,-461.87899425,0.00021917,2]
[378074900,1754717441018,-460.0,0.00021917,2]
[378074902,1754717441027,-460.0,0.00021917,2]
[378074904,1754717441037,-460.0,0.00021917,2]
[378074906,1754717441048,-460.0,0.00021917,2]
[378074908,1754717441057,-460.0,0.00021917,2]
[378074910,1754717441067,-460.0,0.00021917,2]
[378074912,1754717441076,-463.69873514,0.00021917,2]
[378074914,1754717441085,-460.0,0.00021917,2]
[378074916,1754717441095,-460.0,0.00021917,2]
[378074918,1754717441104,-460.0,0.00021917,2]
[378074920,1754717441114,-460.0,0.00021917,2]
[378074922,1754717441124,-460.0,0.00021917,2]
[378074924,1754717441133,-460.94309864,0.00021917,2]
[378074926,1754717441143,-467.81185324,0.00021917,2]
[378074928,1754717441152,-504.86178475,0.00021917,2]
[378074930,1754717441161,-460.0,0.00021917,2]
[378074933,1754717441171,-463.15760176,0.00021917,2]
[378074934,1754717441180,-460.0,0.00021917,2]
[378074936,1754717441189,-461.24791122,0.00021917,2]
[378074939,1754717441199,-460.0,0.00021917,2]
[378074941,1754717441210,-466.30494191,0.00021917,2]
[378074943,1754717441219,-463.96718166,0.00021917,2]
[378074945,1754717441229,-351.82013527,0.00021917,2]
[378074947,1754717441238,-466.82039048,0.00021917,2]
[378074948,1754717441247,-460.0,0.00021917,2]
[378074951,1754717441257,-463.5366162,0.00021917,2]
[378074953,1754717441267,-460.0,0.00021917,2]
[378074955,1754717441276,-460.0,0.00021917,2]
[378074957,1754717441285,-383.27943891,0.00021917,2]
[378074959,1754717441294,-464.30048961,0.00021917,2]
[378074960,1754717441306,-464.08747613,0.00021917,2]
[378074963,1754717441315,-460.0,0.00021917,2]
[378074964,1754717441324,-460.0,0.00021917,2]
[378074966,1754717441333,-460.0,0.00021917,2]
[378074968,1754717441343,-460.0,0.00021917,2]
[378074970,1754717441352,-872.77,0.00021917,2]
[378074972,1754717441361,-460.0,0.00021917,2]
[378074974,1754717441370,-460.0,0.00021917,2]
[378074976,1754717441379,-461.69917502,0.00021917,2]
[378074978,1754717441389,-460.0,0.00021917,2]
[378074980,1754717441398,-460.0,0.00021917,2]
[378074982,1754717441407,-460.0,0.00021917,2]
[378074984,1754717441417,-461.01866813,0.00021917,2]
[378074986,1754717441427,-347.36916299,0.00021917,2]
[378074988,1754717441436,-460.0,0.00021917,2]
[378074990,1754717441446,-519.64769832,0.00021917,2]
[378074993,1754717441455,-461.1568614,0.00021917,2]
[378074994,1754717441464,-460.0,0.00021917,2]
[378074997,1754717441474,-481.28251211,0.00021917,2]
[378074999,1754717441484,-623.59,0.00021917,2]
[378075001,1754717441493,-460.0,0.00021917,2]
[378075003,1754717441503,-460.0,0.00021917,2]
[378075005,1754717441514,-462.7470385,0.00021917,2]
[378075007,1754717441524,-460.0,0.00021917,2]
[378075009,1754717441533,-462.75991398,0.00021917,2]
[378075010,1754717441542,-460.0,0.00021917,2]
[378075012,1754717441554,-460.0,0.00021917,2]
[378075015,1754717441566,-460.0,0.00021917,2]
[378075017,1754717441576,-460.0,0.00021917,2]
[378075019,1754717441586,-460.0,0.00021917,2]
[378075021,1754717441596,-460.0,0.00021917,2]
[378075023,1754717441606,-461.70342733,0.00021917,2]
[378075024,1754717441616,-460.0,0.00021917,2]
[378075026,1754717441625,-460.0,0.00021917,2]
[378075028,1754717441634,-460.0,0.00021917,2]
[378075030,1754717441644,-460.0,0.00021917,2]
[378075032,1754717441653,-461.90216174,0.00021917,2]
[378075034,1754717441663,-460.0,0.00021917,2]
[378075036,1754717441672,-460.0,0.00021917,2]
[378075038,1754717441681,-460.0,0.00021917,2]
[378075040,1754717441691,-460.0,0.00021917,2]
[378075042,1754717441700,-466.65650908,0.00021917,2]
[378075044,1754717441709,-460.0,0.00021917,2]
[378075046,1754717441718,-460.0,0.00021917,2]
[378075048,1754717441727,-460.0,0.00021917,2]
[378075050,1754717441737,-460.0,0.00021917,2]
[378075052,1754717441746,-464.69415242,0.00021917,2]
[378075054,1754717441755,-460.0,0.00021917,2]
[378075056,1754717441765,-460.0,0.00021917,2]
[378075058,1754717441775,-460.0,0.00021917,2]
[378075060,1754717441785,-500.0,0.00021917,2]
[378075062,1754717441794,-500.0,0.00021917,2]
[378075065,1754717441806,-500.0,0.00021917,2]
[378075066,1754717441815,-500.0,0.00021917,2]
[378075069,1754717441825,-500.0,0.00021917,2]
[378075070,1754717441834,-500.0,0.00021917,2]
[378075073,1754717441843,-500.0,0.00021917,2]
[378075074,1754717441852,-460.0,0.00021917,2]
[378075077,1754717441862,-464.39903353,0.00021917,2]
[378075078,1754717441871,-460.0,0.00021917,2]
[378075081,1754717441881,-462.32213993,0.00021917,2]
[378075083,1754717441890,-460.0,0.00021917,2]
[378075085,1754717441899,-460.0,0.00021917,2]
[378075087,1754717441910,-460.0,0.00021917,2]
[378075088,1754717441919,-462.4814455,0.00021917,2]
[378075090,1754717441930,-460.0,0.00021917,2]
[378075092,1754717441939,-460.72242057,0.00021917,2]
[378075094,1754717441949,-467.32153865,0.00021917,2]
[378075096,1754717441957,-460.0,0.00021917,2]
[378075098,1754717441966,-460.0,0.00021917,2]
[378075100,1754717441975,-460.0,0.00021917,2]
[378075102,1754717441985,-517.61402392,0.00021917,2]
[378075104,1754717441994,-376.91741745,0.00021917,2]
[378075106,1754717442004,-460.0,0.00021917,2]
[378075108,1754717442013,-460.0,0.00021917,2]
[378075120,1754717442111,-460.0,0.00021917,2]
[378075122,1754717442121,-466.94424564,0.00021917,2]
[378075124,1754717442131,-460.0,0.00021917,2]
[378075126,1754717442140,-460.0,0.00021917,2]
[378075128,1754717442150,-460.0,0.00021917,2]
[378075130,1754717442159,-460.0,0.00021917,2]
[378075132,1754717442168,-465.24769755,0.00021917,2]
[378075134,1754717442178,-460.0,0.00021917,2]
[378075136,1754717442187,-460.0,0.00021917,2]
[378075138,1754717442198,-460.0,0.00021917,2]
[378075140,1754717442208,-310.96601826,0.00021917,2]
[378075142,1754717442217,-462.02855243,0.00021917,2]
[378075144,1754717442226,-460.0,0.00021917,2]
[378075146,1754717442235,-460.0,0.00021917,2]
[378075148,1754717442245,-460.0,0.00021917,2]
[378075150,1754717442255,-460.0,0.00021917,2]
[378075152,1754717442264,-460.91096569,0.00021917,2]
[378075154,1754717442273,-461.48068918,0.00021917,2]
[378075156,1754717442283,-460.0,0.00021917,2]
[378075158,1754717442293,-464.83021181,0.00021917,2]
[378075160,1754717442304,-460.0,0.00021917,2]
[378075162,1754717442314,-462.12686628,0.00021917,2]
[378075164,1754717442323,-460.0,0.00021917,2]
[378075166,1754717442332,-460.0,0.00021917,2]
[378075168,1754717442342,-460.0,0.00021917,2]
[378075170,1754717442351,-481.14,0.00021917,2]
[378075172,1754717442361,-1328.21,0.00021917,2]
[378075174,1754717442370,-464.13761423,0.00021917,2]
[378075176,1754717442379,-460.0,0.00021917,2]
[378075178,1754717442389,-460.0,0.00021917,2]
[378075180,1754717442399,-460.0,0.00021917,2]
[378075182,1754717442408,-461.83560649,0.00021917,2]
[378075184,1754717442417,-1419.17,0.00021917,2]
[378075187,1754717442426,-460.0,0.00021917,2]
[378075189,1754717442436,-460.0,0.00021917,2]
[378075191,1754717442445,-460.0,0.00021917,2]
[378075193,1754717442454,-548.91,0.00021917,2]
[378075195,1754717442463,-460.0,0.00021917,2]
[378075197,1754717442472,-460.0,0.00021917,2]
[378075199,1754717442481,-460.0,0.00021917,2]
[378075202,1754717442491,-466.47250328,0.00021917,2]
[378075204,1754717442501,-461.0330765,0.00021917,2]
[378075206,1754717442513,-460.0,0.00021917,2]
[378075208,1754717442523,-199.26705394,0.00021917,2]
[378075210,1754717442536,-460.0,0.00021917,2]
[378075212,1754717442545,-460.0,0.00021917,2]
[378075217,1754717442557,-465.05233518,0.00021917,2]
[378075220,1754717442567,-460.0,0.00021917,2]
[378075223,1754717442576,-460.0,0.00021917,2]
[378075226,1754717442587,-460.0,0.00021917,2]
[378075229,1754717442596,-467.40122841,0.00021917,2]
[378075232,1754717442606,-460.0,0.00021917,2]
[378075235,1754717442615,-460.0,0.00021917,2]
[378075238,1754717442624,-462.36290331,0.00021917,2]
[378075241,1754717442633,-460.0,0.00021917,2]
[378075243,1754717442643,-460.0,0.00021917,2]
[378075245,1754717442652,-460.0,0.00021917,2]
[378075247,1754717442661,-460.0,0.00021917,2]
[378075249,1754717442670,-460.0,0.00021917,2]
[378075252,1754717442680,-1181.72,0.00021917,2]
[378075255,1754717442691,-460.0,0.00021917,2]
[378075258,1754717442701,-463.09831725,0.00021917,2]
[378075260,1754717442711,-462.52368942,0.00021917,2]
[378075261,1754717442721,-460.0,0.00021917,2]
[378075262,1754717442731,-460.0,0.00021917,2]
[378075263,1754717442741,-460.0,0.00021917,2]
[378075264,1754717442750,-224.55169105,0.00021917,2]
[378075265,1754717442760,-460.0,0.00021917,2]
[378075266,1754717442770,-462.61045185,0.00021917,2]
[378075267,1754717442779,-460.0,0.00021917,2]
[378075268,1754717442789,-460.0,0.00021917,2]
[378075270,1754717442801,-813.16,0.00021917,2]
[378075272,1754717442810,-461.36658065,0.00021917,2]
[378075274,1754717442820,-463.33883989,0.00021917,2]
[378075276,1754717442829,-460.0,0.00021917,2]
[378075278,1754717442838,-460.0,0.00021917,2]
[378075280,1754717442849,-460.0,0.00021917,2]
[378075282,1754717442859,-3145.56,0.00021917,2]
[378075284,1754717442868,-460.0,0.00021917,2]
[378075286,1754717442877,-460.0,0.00021917,2]
[378075288,1754717442886,-460.0,0.00021917,2]
[378075289,1754717442895,-460.0,0.00021917,2]
[378075292,1754717442904,-462.22947446,0.00021917,2]
[378075293,1754717442914,-460.0,0.00021917,2]
[378075295,1754717442923,-501.90338136,0.00021917,2]
[378075297,1754717442932,-460.0,0.00021917,2]
[378075299,1754717442941,-460.0,0.00021917,2]
[378075301,1754717442950,-622.45,0.00021917,2]
[378075303,1754717442959,-505.9678193,0.00021917,2]
[378075305,1754717442968,-1619.97,0.00021917,2]
[378075307,1754717442977,-460.0,0.00021917,2]
[378075310,1754717442985,-779.99,0.00021917,2]
[378075312,1754717442995,-460.0,0.00021917,2]
[378075314,1754717443003,-460.0,0.00021917,2]
[378075316,1754717443013,-1004.86191393,0.00021917,2]
[378075318,1754717443022,-460.0,0.00021917,2]
[378075320,1754717443031,-460.0,0.00021917,2]
[378075322,1754717443040,-1148.8,0.00021917,2]
[378075324,1754717443052,-460.0,0.00021917,2]
[378075326,1754717443063,-460.0,0.00021917,2]
[378075330,1754717443072,-462.14664678,0.00021917,2]
[378075334,1754717443081,-460.0,0.00021917,2]
[378075338,1754717443090,-1244.78,0.00021917,2]
[378075342,1754717443099,-460.0,0.00021917,2]
[378075346,1754717443109,-2519.37,0.00021917,2]
[378075350,1754717443117,-460.0,0.00021917,2]
[378075352,1754717443126,-460.0,0.00021917,2]
[378075356,1754717443137,-460.0,0.00021917,2]
[378075360,1754717443146,-503.86,0.00021917,2]
[378075363,1754717443155,-638.61,0.00021917,2]
[378075366,1754717443165,-603.35,0.00021917,2]
[378075369,1754717443175,-466.08563013,0.00021917,2]
[378075372,1754717443184,-460.5422654,0.00021917,2]
[378075375,1754717443194,-710.26,0.00021917,2]
[378075378,1754717443203,-460.0,0.00021917,2]
[378075381,1754717443212,-460.0,0.00021917,2]
[378075384,1754717443221,-460.0,0.00021917,2]
[378075387,1754717443230,-460.0,0.00021917,2]
[378075391,1754717443239,-460.0,0.00021917,2]
[378075395,1754717443248,-460.0,0.00021917,2]
[378075399,1754717443257,-460.0,0.00021917,2]
[378075403,1754717443266,-460.0,0.00021917,2]
[378075407,1754717443276,-460.0,0.00021917,2]
[378075411,1754717443285,-460.0,0.00021917,2]
[378075416,1754717443296,-460.0,0.00021917,2]
[378075419,1754717443307,-727.66,0.00021917,2]
[378075423,1754717443316,-460.0,0.00021917,2]
[378075426,1754717443325,-460.0,0.00021917,2]
[378075428,1754717443336,-460.0,0.00021917,2]
[378075432,1754717443345,-460.0,0.00021917,2]
[378075433,1754717443354,-460.0,0.00021917,2]
[378075436,1754717443364,-461.41154806,0.00021917,2]
[378075437,1754717443373,-460.0,0.00021917,2]
[378075440,1754717443382,-460.0,0.00021917,2]
[378075443,1754717443391,-5453.14,0.00021917,2]
[378075446,1754717443401,-460.0,0.00021917,2]
[378075449,1754717443410,-460.0,0.00021917,2]
[378075452,1754717443420,-500.0,0.00021917,2]
[378075455,1754717443429,-460.0,0.00021917,2]
[378075458,1754717443439,-460.0,0.00021917,2]
[378075461,1754717443447,-460.0,0.00021917,2]
[378075464,1754717443458,-460.0,0.00021917,2]
[378075467,1754717443467,-460.56114359,0.00021917,2]
[378075470,1754717443476,-462.50060829,0.00021917,2]
[378075472,1754717443485,-461.91658174,0.00021917,2]
[378075474,1754717443496,-460.0,0.00021917,2]
[378075476,1754717443505,-460.0,0.00021917,2]
[378075478,1754717443518,-460.0,0.00021917,2]
[378075480,1754717443527,-2213.25,0.00021917,2]
[378075482,1754717443537,-460.0,0.00021917,2]
[378075484,1754717443548,-460.84563476,0.00021917,2]
[378075486,1754717443559,-460.0,0.00021917,2]
[378075488,1754717443568,-2392.79,0.00021917,2]
[378075490,1754717443578,-463.52747182,0.00021917,2]
[378075492,1754717443587,-1847.54,0.00021917,2]
[378075494,1754717443596,-461.93632409,0.00021917,2]
[378075496,1754717443606,-460.0,0.00021917,2]
[378075498,1754717443615,-460.0,0.00021917,2]
[378075500,1754717443624,-460.0,0.00021917,2]
[378075502,1754717443634,-462.58409825,0.00021917,2]
[378075504,1754717443643,-460.0,0.00021917,2]
[378075506,1754717443652,-230.07942203,0.00021917,2]
[378075508,1754717443662,-461.09830458,0.00021917,2]
[378075510,1754717443671,-786.49,0.00021917,2]
[378075512,1754717443681,-460.0,0.00021917,2]
[378075514,1754717443690,-460.0,0.00021917,2]
[378075516,1754717443700,-1377.65,0.00021917,2]
[378075518,1754717443710,-460.0,0.00021917,2]
[378075520,1754717443719,-460.0,0.00021917,2]
[378075522,1754717443728,-460.0,0.00021917,2]
[378075524,1754717443738,-460.0,0.00021917,2]
[378075526,1754717443747,-462.70899914,0.00021917,2]
[378075528,1754717443756,-915.76,0.00021917,2]
[378075529,1754717443766,-464.3753302,0.00021917,2]
[378075531,1754717443775,-460.0,0.00021917,2]
[378075533,1754717443784,-460.0,0.00021917,2]
[378075535,1754717443793,-460.0,0.00021917,2]
[378075537,1754717443805,-460.0,0.00021917,2]
[378075539,1754717443814,-466.57,0.00021917,2]
[378075541,1754717443823,-460.0,0.00021917,2]
[378075543,1754717443833,-460.0,0.00021917,2]
[378075545,1754717443842,-460.0,0.00021917,2]
[378075547,1754717443851,-460.0,0.00021917,2]
[378075549,1754717443860,-542.22,0.00021917,2]
[378075560,1754717443950,-460.0,0.00021917,2]
[378075562,1754717443960,-463.70028505,0.00021917,2]
[378075564,1754717443970,-533.05,0.00021917,2]
[378075566,1754717443980,-460.94224965,0.00021917,2]
[378075568,1754717443989,-460.0,0.00021917,2]
[378075570,1754717443998,-460.0,0.00021917,2]
[378075572,1754717444006,-460.0,0.00021917,2]
[378075574,1754717444015,-464.51600047,0.00021917,2]
[378075576,1754717444024,-557.41,0.00021917,2]